Workbook

Sheet Taches AF (hidden)

Sheet Résumé
A1: Mise à jour le : | B1: 2024-01-26
A4: Compte Subvention ASC à date : | B4: =GETPIVOTDATA("Diff",Bilan!$B$3,"C",5,"Compte",512100) -> 25826.66
A6: Compte Fonctionnement à date : | B6: =GETPIVOTDATA("Diff",Bilan!$B$3,"C",5,"Compte",512101) -> 19292.66
A8: Virement ASC 2024 NESTLE envr | B8: 29000
A9: Virement AEP vers ASC 10% 2024 | B9: 1929.3
A13: Budget par personne 2024 | B13: 1500
A14: Budget Prev 2024 | B14: =GETPIVOTDATA("S Crédit",Bilan!$B$3,"C",1) -> 39000
A15: Utilisé 2024 à date | B15: =GETPIVOTDATA("S Débit",Bilan!$B$3,"C",1) -> 0
A16: Reste à payer 2024 / à reporter | B16: =B14-B15 -> 39000
A18: Activités CSE prévu 2024 ASC : | B18: 4000
A20: Solde Prev fin 2024 ASC : | B20: =B4+B8-B16-B18+B9 -> 13755.96
A23: Prev Nombre de salarié 2025 | B23: 26
A24: Prev Budget 2025 | B24: =B25*B23 -> 31200
A25: Prev Budget par personne 2025 | B25: 1200
A26: Prev virement ASC 2025 | B26: 29000
A27: Activités CSE prévu 2025 ASC : | B27: 1556
A29: Prev Reste fin 2025 | B29: =B20+B26-B24-B27 -> 9999.96

Sheet Personnel Detail
C2: NOMS | D2: Budget | E2: Dépenses | F2: Reste AF
C3: ANAIS LERUS | D3: 1500 | F3: 1500
C4: Christelle CHOUAN | D4: 1500 | F4: 1500
C5: Eddy LORBEL | D5: 1500 | F5: 1500
C6: EDWIN SANDOT | D6: 1500 | F6: 1500
C7: Emilie GUILLAUME | D7: 1500 | F7: 1500
C8: Eric CHARTON | D8: 1500 | F8: 1500
C9: Geraldine PINOS | D9: 1500 | F9: 1500
C10: Grenelle Triveillot | D10: 1500 | F10: 1500
C11: Guillaume SOULAS | D11: 1500 | F11: 1500
C12: Johanne LONGRAIS | D12: 1500 | F12: 1500
C13: Lydia THALMENSI | D13: 1500 | F13: 1500
C14: Lydie RESON | D14: 1500 | F14: 1500
C15: MAILINE FIDOL | D15: 1500 | F15: 1500
C16: Ma-Ivah BENOIT | D16: 1500 | F16: 1500
C17: Max NOSIBOR | D17: 1500 | F17: 1500
C18: Maxime ANNEQUIN | D18: 1500 | F18: 1500
C19: Mireille ROCHE | D19: 1500 | F19: 1500
C20: Muriel DE GENTIL | D20: 1500 | F20: 1500
C21: Mylene MARTIN | D21: 1500 | F21: 1500
C22: Olivia LAPORAL | D22: 1500 | F22: 1500
C23: Oriane Mayoute | D23: 1500 | F23: 1500
C24: RAISSA LUSINE | D24: 1500 | F24: 1500
C25: Remplaçante Amina | D25: 1500 | F25: 1500
C26: Stephanie LUBIN | D26: 1500 | F26: 1500
C27: Xavier CORBIN | D27: 1500 | F27: 1500
C28: Yohan LASSALLE | D28: 1500 | F28: 1500
C29: Total général | D29: 39000 | F29: 39000

Sheet Bilan
K1: Noms | L1: Eric CHARTON
B3: Étiquettes de lignes | C3: S Débit | D3: S Crédit | E3: Diff | K3: Étiquettes de lignes | L3: S Débit | M3: S Crédit | N3: Diff
B4: 1 | D4: 39000 | E4: -39000 | K4: 1 | L4: 375 | M4: 2000 | N4: -1625
B5: 5 | C5: 45119.32 | E5: 45119.32 | K5: 4 | L5: 375 | M5: 375 | N5: 0
B6: 512100 | C6: 25826.66 | E6: 25826.66 | K6: Total général | L6: 750 | M6: 2375 | N6: -1625
B7: 512101 | C7: 19292.66 | E7: 19292.66
B8: 6 | C8: 40500 | E8: 40500
B9: 7 | D9: 45119.32 | E9: -45119.32
B10: (vide) | E10: 0
B11: Total général | C11: 85619.32 | D11: 84119.32 | E11: 1500

Sheet Compte Budget AEP
A1: Date opérat. | B1: F | C1: C | D1: Compte | E1: Rèf | F1: Libéllé | G1: Débit | H1: Crédit | I1: Solde | J1: *
A2: 2024-01-01 | F2: Relevé au 01/01/2024 | H2: 19292.66 | I2: =+H2 -> 19292.66 | J2: *
I3: =I2-G3+H3 -> 19292.66
I4: 19292.66
I5: 19292.66
I6: 19292.66
I7: 19292.66
I8: 19292.66
I9: 19292.66
I10: 19292.66
I11: 19292.66
I12: 19292.66
I13: 19292.66
I14: 19292.66
I15: 19292.66
I16: 19292.66
I17: 19292.66
I18: 19292.66
I19: 19292.66
I20: 19292.66
I21: 19292.66
I22: 19292.66
I23: 19292.66
I24: 19292.66
I25: 19292.66
I26: 19292.66
I27: 19292.66
I28: 19292.66
I29: 19292.66
I30: 19292.66
I31: 19292.66
I32: 19292.66
I33: 19292.66
I34: 19292.66
I35: =I34-G35+H35 -> 19292.66
I36: 19292.66
I37: 19292.66
I38: 19292.66
I39: 19292.66
I40: 19292.66
I41: 19292.66
I42: 19292.66
I43: 19292.66
I44: 19292.66
I45: 19292.66
I46: 19292.66
I47: 19292.66
I48: 19292.66
I49: 19292.66
I50: 19292.66
I51: 19292.66
I52: 19292.66
I53: 19292.66
I54: 19292.66
I55: 19292.66
I56: 19292.66
I57: 19292.66
I58: 19292.66
I59: 19292.66
I60: 19292.66
I61: 19292.66
I62: 19292.66
I63: 19292.66
I64: 19292.66
I65: 19292.66
I66: 19292.66
I67: =I66-G67+H67 -> 19292.66
I68: 19292.66
I69: 19292.66
I70: 19292.66
I71: 19292.66
I72: 19292.66
I73: 19292.66
I74: 19292.66
I75: 19292.66
I76: 19292.66
I77: 19292.66
I78: 19292.66
I79: 19292.66
I80: 19292.66
I81: 19292.66
I82: 19292.66
I83: 19292.66
I84: 19292.66
I85: 19292.66
I86: 19292.66
I87: 19292.66
I88: 19292.66
I89: 19292.66
I90: 19292.66
I91: 19292.66
I92: 19292.66
I93: 19292.66
I94: 19292.66
I95: 19292.66
I96: 19292.66
I97: 19292.66
I98: 19292.66
I99: =I98-G99+H99 -> 19292.66
I100: 19292.66
I101: 19292.66
I102: 19292.66
I103: 19292.66
I104: 19292.66
I105: 19292.66
I106: 19292.66
I107: 19292.66
I108: 19292.66
I109: 19292.66
I110: 19292.66
I111: 19292.66
I112: 19292.66
I113: 19292.66
I114: 19292.66
I115: 19292.66
I116: 19292.66
I117: 19292.66
I118: 19292.66
I119: 19292.66
I120: 19292.66
I121: 19292.66
I122: 19292.66
I123: 19292.66
I124: 19292.66
I125: 19292.66
I126: 19292.66
I127: 19292.66
I128: 19292.66

Sheet Compte Subv ASC
A1: Date opérat. | B1: F | C1: C | D1: Compte | E1: Rèf | F1: Libéllé | G1: Débit | H1: Crédit | I1: Solde | K1: Justif | L1: Justif Numérisé
A2: 2024-01-01 | F2: Relevé au 01/01/2024 | H2: 25826.66 | I2: =+H2 -> 25826.66 | J2: *
I3: =I2-G3+H3 -> 25826.66
I4: 25826.66
I5: 25826.66
I6: 25826.66
I7: 25826.66
I8: 25826.66
I9: 25826.66
I10: 25826.66
I11: 25826.66
I12: 25826.66
I13: 25826.66
I14: 25826.66
I15: 25826.66
I16: 25826.66
I17: 25826.66
I18: 25826.66
I19: 25826.66
I20: 25826.66
I21: 25826.66
I22: 25826.66
I23: 25826.66
I24: 25826.66
I25: 25826.66
I26: 25826.66
I27: 25826.66
I28: 25826.66
I29: 25826.66
I30: 25826.66
I31: 25826.66
I32: 25826.66
I33: 25826.66
I34: 25826.66
I35: 25826.66
I36: 25826.66
I37: 25826.66
I38: 25826.66
I39: 25826.66
I40: 25826.66
I41: 25826.66
I42: 25826.66
I43: 25826.66
I44: 25826.66
I45: 25826.66
I46: 25826.66
I47: 25826.66
I48: 25826.66
I49: 25826.66
I50: 25826.66
I51: 25826.66
I52: 25826.66
I53: 25826.66
I54: 25826.66
I55: 25826.66
I56: 25826.66
I57: 25826.66
I58: 25826.66
I59: 25826.66
I60: 25826.66
I61: 25826.66
I62: 25826.66
I63: 25826.66
I64: 25826.66
I65: 25826.66
I66: 25826.66
I67: =I66-G67+H67 -> 25826.66
I68: 25826.66
I69: 25826.66
I70: 25826.66
I71: 25826.66
I72: 25826.66
I73: 25826.66
I74: 25826.66
I75: 25826.66
I76: 25826.66
I77: 25826.66
I78: 25826.66
I79: 25826.66
I80: 25826.66
I81: 25826.66
I82: 25826.66
I83: 25826.66
I84: 25826.66
I85: 25826.66
I86: 25826.66
I87: 25826.66
I88: 25826.66
I89: 25826.66
I90: 25826.66
I91: 25826.66
I92: 25826.66
I93: 25826.66
I94: 25826.66
I95: 25826.66
I96: 25826.66
I97: 25826.66
I98: 25826.66
I99: 25826.66
I100: 25826.66
I101: 25826.66
I102: 25826.66
I103: 25826.66
I104: 25826.66
I105: 25826.66
I106: 25826.66
I107: 25826.66
I108: 25826.66
I109: 25826.66
I110: 25826.66
I111: 25826.66
I112: 25826.66
I113: 25826.66
I114: 25826.66
I115: 25826.66
I116: 25826.66
I117: 25826.66
I118: 25826.66
I119: 25826.66
I120: 25826.66
I121: 25826.66
I122: 25826.66
I123: 25826.66
I124: 25826.66
I125: 25826.66
I126: 25826.66

Sheet Grand Livre
A1: Date opérat. | B1: F | C1: C | D1: Compte | E1: Rèf | F1: Libéllé | G1: Débit | H1: Crédit | I1: Solde | J1: Noms
A2: 2024-01-01 | C2: 5 | D2: 512101 | F2: Subvention de fonctionnement reçue l’employeur | G2: 19292.66 | J2: =VLOOKUP(D2,NOMS!$A:$B,2,FALSE) -> 
A3: 2024-01-01 | C3: 7 | D3: 756010 | F3: Subvention de fonctionnement reçue l’employeur | H3: 19292.66 | J3: =VLOOKUP(D3,NOMS!$A:$B,2,FALSE) -> 
A4: 2024-01-01 | C4: 5 | D4: 512100 | F4: Contribution ASC reçue de l’employeur | G4: 25826.66 | J4: =VLOOKUP(D4,NOMS!$A:$B,2,FALSE) -> 
A5: 2024-01-01 | C5: 7 | D5: 756020 | F5: Contribution ASC reçue de l’employeur | H5: 25826.66 | J5: =VLOOKUP(D5,NOMS!$A:$B,2,FALSE) -> 
J6: =VLOOKUP(D6,NOMS!$A:$B,2,FALSE) -> 
J7: =VLOOKUP(D7,NOMS!$A:$B,2,FALSE) -> 
J8: =VLOOKUP(D8,NOMS!$A:$B,2,FALSE) -> 
A9: 2024-01-01 | C9: 6 | D9: 681500 | F9: Provision Budget ASC 2022 | G9: 40500 | J9: =VLOOKUP(D9,NOMS!$A:$B,2,FALSE) -> 
A10: 2023-01-01 | C10: 1 | D10: 155001 | E10: Budget ASC 2022 | F10: Provision Budget ASC 2022 | H10: 1500 | J10: =VLOOKUP(D10,NOMS!$A:$B,2,FALSE) -> Yohan LASSALLE
A11: 2023-01-01 | C11: 1 | D11: 155002 | E11: Budget ASC 2022 | F11: Provision Budget ASC 2022 | H11: 1500 | J11: =VLOOKUP(D11,NOMS!$A:$B,2,FALSE) -> Eric CHARTON
A12: 2023-01-01 | C12: 1 | D12: 155003 | E12: Budget ASC 2022 | F12: Provision Budget ASC 2022 | H12: 1500 | J12: =VLOOKUP(D12,NOMS!$A:$B,2,FALSE) -> Lydie RESON
A13: 2023-01-01 | C13: 1 | D13: 155004 | E13: Budget ASC 2022 | F13: Provision Budget ASC 2022 | H13: 1500 | J13: =VLOOKUP(D13,NOMS!$A:$B,2,FALSE) -> Muriel DE GENTIL
A14: 2023-01-01 | C14: 1 | D14: 155005 | E14: Budget ASC 2022 | F14: Provision Budget ASC 2022 | H14: 1500 | J14: =VLOOKUP(D14,NOMS!$A:$B,2,FALSE) -> Oriane Mayoute
A15: 2023-01-01 | C15: 1 | D15: 155007 | E15: Budget ASC 2022 | F15: Provision Budget ASC 2022 | H15: 1500 | J15: =VLOOKUP(D15,NOMS!$A:$B,2,FALSE) -> Geraldine PINOS
A16: 2023-01-01 | C16: 1 | D16: 155008 | E16: Budget ASC 2022 | F16: Provision Budget ASC 2022 | H16: 1500 | J16: =VLOOKUP(D16,NOMS!$A:$B,2,FALSE) -> Stephanie LUBIN
A17: 2023-01-01 | C17: 1 | D17: 155009 | E17: Budget ASC 2022 | F17: Provision Budget ASC 2022 | H17: 1500 | J17: =VLOOKUP(D17,NOMS!$A:$B,2,FALSE) -> Eddy LORBEL
A18: 2023-01-01 | C18: 1 | D18: 155010 | E18: Budget ASC 2022 | F18: Provision Budget ASC 2022 | H18: 1500 | J18: =VLOOKUP(D18,NOMS!$A:$B,2,FALSE) -> Olivia LAPORAL
A19: 2023-01-01 | C19: 1 | D19: 155011 | E19: Budget ASC 2022 | F19: Provision Budget ASC 2022 | H19: 1500 | J19: =VLOOKUP(D19,NOMS!$A:$B,2,FALSE) -> Ma-Ivah BENOIT
A20: 2023-01-01 | C20: 1 | D20: 155012 | E20: Budget ASC 2022 | F20: Provision Budget ASC 2022 | H20: 1500 | J20: =VLOOKUP(D20,NOMS!$A:$B,2,FALSE) -> Lydia THALMENSI
A21: 2023-01-01 | C21: 1 | D21: 155013 | E21: Budget ASC 2022 | F21: Provision Budget ASC 2022 | H21: 1500 | J21: =VLOOKUP(D21,NOMS!$A:$B,2,FALSE) -> Christelle CHOUAN
A22: 2023-01-01 | C22: 1 | D22: 155015 | E22: Budget ASC 2022 | F22: Provision Budget ASC 2022 | H22: 1500 | J22: =VLOOKUP(D22,NOMS!$A:$B,2,FALSE) -> Mireille ROCHE
A23: 2023-01-01 | C23: 1 | D23: 155017 | E23: Budget ASC 2022 | F23: Provision Budget ASC 2022 | H23: 1500 | J23: =VLOOKUP(D23,NOMS!$A:$B,2,FALSE) -> RAISSA LUSINE
A24: 2023-01-01 | C24: 1 | D24: 155018 | E24: Budget ASC 2022 | F24: Provision Budget ASC 2022 | H24: 1500 | J24: =VLOOKUP(D24,NOMS!$A:$B,2,FALSE) -> Xavier CORBIN
A25: 2023-01-01 | C25: 1 | D25: 155019 | E25: Budget ASC 2022 | F25: Provision Budget ASC 2022 | H25: 1500 | J25: =VLOOKUP(D25,NOMS!$A:$B,2,FALSE) -> Mylene MARTIN
A26: 2023-01-01 | C26: 1 | D26: 155020 | E26: Budget ASC 2022 | F26: Provision Budget ASC 2022 | H26: 1500 | J26: =VLOOKUP(D26,NOMS!$A:$B,2,FALSE) -> Johanne LONGRAIS
A27: 2023-01-01 | C27: 1 | D27: 155021 | E27: Budget ASC 2022 | F27: Provision Budget ASC 2022 | H27: 1500 | J27: =VLOOKUP(D27,NOMS!$A:$B,2,FALSE) -> Max NOSIBOR
A28: 2023-01-01 | C28: 1 | D28: 155022 | E28: Budget ASC 2022 | F28: Provision Budget ASC 2022 | H28: 1500 | J28: =VLOOKUP(D28,NOMS!$A:$B,2,FALSE) -> Maxime ANNEQUIN
A29: 2023-01-01 | C29: 1 | D29: 155023 | E29: Budget ASC 2022 | F29: Provision Budget ASC 2022 | H29: 1500 | J29: =VLOOKUP(D29,NOMS!$A:$B,2,FALSE) -> ANAIS LERUS
A30: 2023-01-01 | C30: 1 | D30: 155025 | E30: Budget ASC 2022 | F30: Provision Budget ASC 2022 | H30: 1500 | J30: =VLOOKUP(D30,NOMS!$A:$B,2,FALSE) -> EDWIN SANDOT
A31: 2023-01-01 | C31: 1 | D31: 155027 | E31: Budget ASC 2022 | F31: Provision Budget ASC 2022 | H31: 1500 | J31: =VLOOKUP(D31,NOMS!$A:$B,2,FALSE) -> Guillaume SOULAS
A32: 2023-01-01 | C32: 1 | D32: 155029 | E32: Budget ASC 2022 | F32: Provision Budget ASC 2022 | H32: 1500 | J32: =VLOOKUP(D32,NOMS!$A:$B,2,FALSE) -> Grenelle Triveillot
A33: 2023-01-01 | C33: 1 | D33: 155030 | E33: Budget ASC 2022 | F33: Provision Budget ASC 2022 | H33: 1500 | J33: =VLOOKUP(D33,NOMS!$A:$B,2,FALSE) -> MAILINE FIDOL
A34: 2023-01-01 | C34: 1 | D34: 155031 | E34: Budget ASC 2022 | F34: Provision Budget ASC 2022 | H34: 1500 | J34: =VLOOKUP(D34,NOMS!$A:$B,2,FALSE) -> Emilie GUILLAUME
A35: 2023-01-01 | C35: 1 | D35: 155032 | E35: Budget ASC 2022 | F35: Provision Budget ASC 2022 | H35: 1500 | J35: =VLOOKUP(D35,NOMS!$A:$B,2,FALSE) -> Remplaçante Amina
J36: =VLOOKUP(D36,NOMS!$A:$B,2,FALSE) -> 
J37: =VLOOKUP(D37,NOMS!$A:$B,2,FALSE) -> 
J38: =VLOOKUP(D38,NOMS!$A:$B,2,FALSE) -> 
J39: =VLOOKUP(D39,NOMS!$A:$B,2,FALSE) -> 
J40: =VLOOKUP(D40,NOMS!$A:$B,2,FALSE) -> 
J41: =VLOOKUP(D41,NOMS!$A:$B,2,FALSE) -> 
J42: =VLOOKUP(D42,NOMS!$A:$B,2,FALSE) -> 
J43: =VLOOKUP(D43,NOMS!$A:$B,2,FALSE) -> 
J44: =VLOOKUP(D44,NOMS!$A:$B,2,FALSE) -> 
J45: =VLOOKUP(D45,NOMS!$A:$B,2,FALSE) -> 
J46: =VLOOKUP(D46,NOMS!$A:$B,2,FALSE) -> 
J47: =VLOOKUP(D47,NOMS!$A:$B,2,FALSE) -> 
J48: =VLOOKUP(D48,NOMS!$A:$B,2,FALSE) -> 
J49: =VLOOKUP(D49,NOMS!$A:$B,2,FALSE) -> 
J50: =VLOOKUP(D50,NOMS!$A:$B,2,FALSE) -> 
J51: =VLOOKUP(D51,NOMS!$A:$B,2,FALSE) -> 
J52: =VLOOKUP(D52,NOMS!$A:$B,2,FALSE) -> 
J53: =VLOOKUP(D53,NOMS!$A:$B,2,FALSE) -> 
J54: =VLOOKUP(D54,NOMS!$A:$B,2,FALSE) -> 
J55: =VLOOKUP(D55,NOMS!$A:$B,2,FALSE) -> 
J56: =VLOOKUP(D56,NOMS!$A:$B,2,FALSE) -> 
J57: =VLOOKUP(D57,NOMS!$A:$B,2,FALSE) -> 
J58: =VLOOKUP(D58,NOMS!$A:$B,2,FALSE) -> 
J59: =VLOOKUP(D59,NOMS!$A:$B,2,FALSE) -> 
J60: =VLOOKUP(D60,NOMS!$A:$B,2,FALSE) -> 
J61: =VLOOKUP(D61,NOMS!$A:$B,2,FALSE) -> 
J62: =VLOOKUP(D62,NOMS!$A:$B,2,FALSE) -> 
J63: =VLOOKUP(D63,NOMS!$A:$B,2,FALSE) -> 
J64: =VLOOKUP(D64,NOMS!$A:$B,2,FALSE) -> 
J65: =VLOOKUP(D65,NOMS!$A:$B,2,FALSE) -> 
J66: =VLOOKUP(D66,NOMS!$A:$B,2,FALSE) -> 
J67: =VLOOKUP(D67,NOMS!$A:$B,2,FALSE) -> 
J68: =VLOOKUP(D68,NOMS!$A:$B,2,FALSE) -> 
J69: =VLOOKUP(D69,NOMS!$A:$B,2,FALSE) -> 
J70: =VLOOKUP(D70,NOMS!$A:$B,2,FALSE) -> 
J71: =VLOOKUP(D71,NOMS!$A:$B,2,FALSE) -> 
J72: =VLOOKUP(D72,NOMS!$A:$B,2,FALSE) -> 
J73: =VLOOKUP(D73,NOMS!$A:$B,2,FALSE) -> 
J74: =VLOOKUP(D74,NOMS!$A:$B,2,FALSE) -> 
J75: =VLOOKUP(D75,NOMS!$A:$B,2,FALSE) -> 
J76: =VLOOKUP(D76,NOMS!$A:$B,2,FALSE) -> 
J77: =VLOOKUP(D77,NOMS!$A:$B,2,FALSE) -> 
J78: =VLOOKUP(D78,NOMS!$A:$B,2,FALSE) -> 
J79: =VLOOKUP(D79,NOMS!$A:$B,2,FALSE) -> 
J80: =VLOOKUP(D80,NOMS!$A:$B,2,FALSE) -> 
J81: =VLOOKUP(D81,NOMS!$A:$B,2,FALSE) -> 
J82: =VLOOKUP(D82,NOMS!$A:$B,2,FALSE) -> 
J83: =VLOOKUP(D83,NOMS!$A:$B,2,FALSE) -> 
J84: =VLOOKUP(D84,NOMS!$A:$B,2,FALSE) -> 
J85: =VLOOKUP(D85,NOMS!$A:$B,2,FALSE) -> 
J86: =VLOOKUP(D86,NOMS!$A:$B,2,FALSE) -> 
J87: =VLOOKUP(D87,NOMS!$A:$B,2,FALSE) -> 
J88: =VLOOKUP(D88,NOMS!$A:$B,2,FALSE) -> 
J89: =VLOOKUP(D89,NOMS!$A:$B,2,FALSE) -> 
J90: =VLOOKUP(D90,NOMS!$A:$B,2,FALSE) -> 
J91: =VLOOKUP(D91,NOMS!$A:$B,2,FALSE) -> 
J92: =VLOOKUP(D92,NOMS!$A:$B,2,FALSE) -> 
J93: =VLOOKUP(D93,NOMS!$A:$B,2,FALSE) -> 
J94: =VLOOKUP(D94,NOMS!$A:$B,2,FALSE) -> 
J95: =VLOOKUP(D95,NOMS!$A:$B,2,FALSE) -> 
J96: =VLOOKUP(D96,NOMS!$A:$B,2,FALSE) -> 
J97: =VLOOKUP(D97,NOMS!$A:$B,2,FALSE) -> 
J98: =VLOOKUP(D98,NOMS!$A:$B,2,FALSE) -> 
J99: =VLOOKUP(D99,NOMS!$A:$B,2,FALSE) -> 
J100: =VLOOKUP(D100,NOMS!$A:$B,2,FALSE) -> 
J101: =VLOOKUP(D101,NOMS!$A:$B,2,FALSE) -> 
J102: =VLOOKUP(D102,NOMS!$A:$B,2,FALSE) -> 
J103: =VLOOKUP(D103,NOMS!$A:$B,2,FALSE) -> 
J104: =VLOOKUP(D104,NOMS!$A:$B,2,FALSE) -> 
J105: =VLOOKUP(D105,NOMS!$A:$B,2,FALSE) -> 
J106: =VLOOKUP(D106,NOMS!$A:$B,2,FALSE) -> 
J107: =VLOOKUP(D107,NOMS!$A:$B,2,FALSE) -> 
J108: =VLOOKUP(D108,NOMS!$A:$B,2,FALSE) -> 
J109: =VLOOKUP(D109,NOMS!$A:$B,2,FALSE) -> 
J110: =VLOOKUP(D110,NOMS!$A:$B,2,FALSE) -> 
J111: =VLOOKUP(D111,NOMS!$A:$B,2,FALSE) -> 
J112: =VLOOKUP(D112,NOMS!$A:$B,2,FALSE) -> 
J113: =VLOOKUP(D113,NOMS!$A:$B,2,FALSE) -> 
J114: =VLOOKUP(D114,NOMS!$A:$B,2,FALSE) -> 
J115: =VLOOKUP(D115,NOMS!$A:$B,2,FALSE) -> 
J116: =VLOOKUP(D116,NOMS!$A:$B,2,FALSE) -> 
J117: =VLOOKUP(D117,NOMS!$A:$B,2,FALSE) -> 
J118: =VLOOKUP(D118,NOMS!$A:$B,2,FALSE) -> 
J119: =VLOOKUP(D119,NOMS!$A:$B,2,FALSE) -> 
J120: =VLOOKUP(D120,NOMS!$A:$B,2,FALSE) -> 
J121: =VLOOKUP(D121,NOMS!$A:$B,2,FALSE) -> 
J122: =VLOOKUP(D122,NOMS!$A:$B,2,FALSE) -> 
J123: =VLOOKUP(D123,NOMS!$A:$B,2,FALSE) -> 
J124: =VLOOKUP(D124,NOMS!$A:$B,2,FALSE) -> 
J125: =VLOOKUP(D125,NOMS!$A:$B,2,FALSE) -> 
J126: =VLOOKUP(D126,NOMS!$A:$B,2,FALSE) -> 
J127: =VLOOKUP(D127,NOMS!$A:$B,2,FALSE) -> 
J128: =VLOOKUP(D128,NOMS!$A:$B,2,FALSE) -> 
J129: =VLOOKUP(D129,NOMS!$A:$B,2,FALSE) -> 
J130: =VLOOKUP(D130,NOMS!$A:$B,2,FALSE) -> 
J131: =VLOOKUP(D131,NOMS!$A:$B,2,FALSE) -> 
J132: =VLOOKUP(D132,NOMS!$A:$B,2,FALSE) -> 
J133: =VLOOKUP(D133,NOMS!$A:$B,2,FALSE) -> 
J134: =VLOOKUP(D134,NOMS!$A:$B,2,FALSE) -> 
J135: =VLOOKUP(D135,NOMS!$A:$B,2,FALSE) -> 
J136: =VLOOKUP(D136,NOMS!$A:$B,2,FALSE) -> 
J137: =VLOOKUP(D137,NOMS!$A:$B,2,FALSE) -> 
J138: =VLOOKUP(D138,NOMS!$A:$B,2,FALSE) -> 
J139: =VLOOKUP(D139,NOMS!$A:$B,2,FALSE) -> 
J140: =VLOOKUP(D140,NOMS!$A:$B,2,FALSE) -> 
J141: =VLOOKUP(D141,NOMS!$A:$B,2,FALSE) -> 
J142: =VLOOKUP(D142,NOMS!$A:$B,2,FALSE) -> 
J143: =VLOOKUP(D143,NOMS!$A:$B,2,FALSE) -> 
J144: =VLOOKUP(D144,NOMS!$A:$B,2,FALSE) -> 
J145: =VLOOKUP(D145,NOMS!$A:$B,2,FALSE) -> 
J146: =VLOOKUP(D146,NOMS!$A:$B,2,FALSE) -> 
J147: =VLOOKUP(D147,NOMS!$A:$B,2,FALSE) -> 
J148: =VLOOKUP(D148,NOMS!$A:$B,2,FALSE) -> 
J149: =VLOOKUP(D149,NOMS!$A:$B,2,FALSE) -> 
J150: =VLOOKUP(D150,NOMS!$A:$B,2,FALSE) -> 
J151: =VLOOKUP(D151,NOMS!$A:$B,2,FALSE) -> 
J152: =VLOOKUP(D152,NOMS!$A:$B,2,FALSE) -> 
J153: =VLOOKUP(D153,NOMS!$A:$B,2,FALSE) -> 
J154: =VLOOKUP(D154,NOMS!$A:$B,2,FALSE) -> 
J155: =VLOOKUP(D155,NOMS!$A:$B,2,FALSE) -> 
J156: =VLOOKUP(D156,NOMS!$A:$B,2,FALSE) -> 
J157: =VLOOKUP(D157,NOMS!$A:$B,2,FALSE) -> 
J158: =VLOOKUP(D158,NOMS!$A:$B,2,FALSE) -> 
J159: =VLOOKUP(D159,NOMS!$A:$B,2,FALSE) -> 
J160: =VLOOKUP(D160,NOMS!$A:$B,2,FALSE) -> 
J161: =VLOOKUP(D161,NOMS!$A:$B,2,FALSE) -> 
J162: =VLOOKUP(D162,NOMS!$A:$B,2,FALSE) -> 
J163: =VLOOKUP(D163,NOMS!$A:$B,2,FALSE) -> 
J164: =VLOOKUP(D164,NOMS!$A:$B,2,FALSE) -> 
J165: =VLOOKUP(D165,NOMS!$A:$B,2,FALSE) -> 
J166: =VLOOKUP(D166,NOMS!$A:$B,2,FALSE) -> 
J167: =VLOOKUP(D167,NOMS!$A:$B,2,FALSE) -> 
J168: =VLOOKUP(D168,NOMS!$A:$B,2,FALSE) -> 
J169: =VLOOKUP(D169,NOMS!$A:$B,2,FALSE) -> 
J170: =VLOOKUP(D170,NOMS!$A:$B,2,FALSE) -> 
J171: =VLOOKUP(D171,NOMS!$A:$B,2,FALSE) -> 
J172: =VLOOKUP(D172,NOMS!$A:$B,2,FALSE) -> 
J173: =VLOOKUP(D173,NOMS!$A:$B,2,FALSE) -> 
J174: =VLOOKUP(D174,NOMS!$A:$B,2,FALSE) -> 
J175: =VLOOKUP(D175,NOMS!$A:$B,2,FALSE) -> 
J176: =VLOOKUP(D176,NOMS!$A:$B,2,FALSE) -> 
J177: =VLOOKUP(D177,NOMS!$A:$B,2,FALSE) -> 
J178: =VLOOKUP(D178,NOMS!$A:$B,2,FALSE) -> 
J179: =VLOOKUP(D179,NOMS!$A:$B,2,FALSE) -> 
J180: =VLOOKUP(D180,NOMS!$A:$B,2,FALSE) -> 
J181: =VLOOKUP(D181,NOMS!$A:$B,2,FALSE) -> 
J182: =VLOOKUP(D182,NOMS!$A:$B,2,FALSE) -> 
J183: =VLOOKUP(D183,NOMS!$A:$B,2,FALSE) -> 
J184: =VLOOKUP(D184,NOMS!$A:$B,2,FALSE) -> 
J185: =VLOOKUP(D185,NOMS!$A:$B,2,FALSE) -> 
J186: =VLOOKUP(D186,NOMS!$A:$B,2,FALSE) -> 
J187: =VLOOKUP(D187,NOMS!$A:$B,2,FALSE) -> 
J188: =VLOOKUP(D188,NOMS!$A:$B,2,FALSE) -> 
J189: =VLOOKUP(D189,NOMS!$A:$B,2,FALSE) -> 
J190: =VLOOKUP(D190,NOMS!$A:$B,2,FALSE) -> 
J191: =VLOOKUP(D191,NOMS!$A:$B,2,FALSE) -> 
J192: =VLOOKUP(D192,NOMS!$A:$B,2,FALSE) -> 
J193: =VLOOKUP(D193,NOMS!$A:$B,2,FALSE) -> 
J194: =VLOOKUP(D194,NOMS!$A:$B,2,FALSE) -> 
J195: =VLOOKUP(D195,NOMS!$A:$B,2,FALSE) -> 
J196: =VLOOKUP(D196,NOMS!$A:$B,2,FALSE) -> 
J197: =VLOOKUP(D197,NOMS!$A:$B,2,FALSE) -> 
J198: =VLOOKUP(D198,NOMS!$A:$B,2,FALSE) -> 
J199: =VLOOKUP(D199,NOMS!$A:$B,2,FALSE) ->  | K199: 8
J200: =VLOOKUP(D200,NOMS!$A:$B,2,FALSE) -> 
... 553 more rows

Sheet Banques (hidden)
A1: Date opérat. | D1: Compte | E1: Rèf | F1: Credit Agricole | G1: Débit | H1: Crédit
A2: 2022-05-09 | C2: 5 | D2: 512101 | F2: Subvention de fonctionnement reçue l’employeur | G2: 16141
A3: 2022-05-09 | C3: 7 | D3: 756010 | F3: Subvention de fonctionnement reçue l’employeur | H3: 16141
A4: 2022-05-20 | C4: 5 | D4: 512100 | F4: Subvention de fonctionnement reçue l’employeur | G4: 94278
A5: 2022-05-20 | C5: 7 | D5: 756020 | F5: Contribution ASC reçue de l’employeur | H5: 94278
A6: 2022-07-01 | C6: 4 | D6: 421001 | E6: Remb Avance | F6: Remboursement YL Achat Dictaphonne DIGITAL | G6: 150
A7: 2022-07-01 | C7: 5 | D7: 512101 | F7: Remboursement YL Achat Dictaphonne DIGITAL | H7: 150
A8: 2022-06-13 | C8: 4 | D8: 421006 | E8: voyage | F8: ASC Amina ISCAYE | G8: 1500
A9: 2022-06-13 | C9: 5 | D9: 512100 | F9: ASC Amina ISCAYE | H9: 1500
A10: 2022-06-13 | C10: 4 | D10: 421015 | E10: voyage | F10: ASC Mireille ROCHE | G10: 1500
A11: 2022-06-13 | C11: 5 | D11: 512100 | F11: ASC Mireille ROCHE | H11: 1500
A12: 2022-06-13 | C12: 4 | D12: 421004 | E12: voyage | F12: ASC Muriel DE GENTIL | G12: 1500
A13: 2022-06-13 | C13: 5 | D13: 512100 | F13: ASC Muriel DE GENTIL | H13: 1500
A14: 2022-06-13 | C14: 4 | D14: 421003 | E14: voyage | F14: ASC Lydie RESON | G14: 1500 | J14: Adelmas NESLIDE
A15: 2022-06-13 | C15: 5 | D15: 512100 | F15: ASC Lydie RESON | H15: 1500
A16: 2022-06-16 | C16: 4 | D16: 421008 | E16: voyage | F16: ASC Stéphanie LUBIN | G16: 1500
A17: 2022-06-16 | C17: 5 | D17: 512100 | F17: ASC Stéphanie LUBIN | H17: 1500
A18: 2022-06-17 | C18: 4 | D18: 421001 | E18: voyage | F18: ASC Yohan LASSALLE | G18: 1500
A19: 2022-06-17 | C19: 5 | D19: 512100 | F19: ASC Yohan LASSALLE | H19: 1500
A20: 2022-08-04 | C20: 4 | D20: 421026 | E20: voyage | F20: ASC Adelmas NESLIDE | G20: 661.14
A21: 2022-08-04 | C21: 5 | D21: 512100 | F21: ASC Adelmas NESLIDE | H21: 661.14
A22: 2022-08-29 | C22: 4 | D22: 421010 | E22: voyage | F22: ASC Olivia LAPORAL | G22: 880.24
A23: 2022-08-29 | C23: 5 | D23: 512100 | F23: ASC Olivia LAPORAL | H23: 880.24
A24: 2022-08-31 | C24: 4 | D24: 421010 | E24: voyage | F24: ASC Olivia LAPORAL | G24: 316.05
A25: 2022-08-31 | C25: 5 | D25: 512100 | F25: ASC Olivia LAPORAL | H25: 316.05
A26: 2022-08-31 | C26: 4 | D26: 421010 | E26: Sport et loisirs | F26: ASC Olivia LAPORAL | G26: 159.6
A27: 2022-08-31 | C27: 5 | D27: 512100 | F27: ASC Olivia LAPORAL | H27: 159.6
A28: 2022-08-31 | C28: 4 | D28: 421010 | E28: Noel employé | F28: ASC Olivia LAPORAL | G28: 144.11
A29: 2022-08-31 | C29: 5 | D29: 512100 | F29: ASC Olivia LAPORAL | H29: 144.11
A30: 2022-08-22 | C30: 4 | D30: 421002 | E30: Sport et loisirs | F30: ASC Eric CHARTON | G30: 707
A31: 2022-08-22 | C31: 5 | D31: 512100 | F31: ASC Eric CHARTON | H31: 707
A32: 2022-08-26 | C32: 4 | D32: 421019 | E32: voyage | F32: ASC Mylene MARTIN | G32: 1500
A33: 2022-08-26 | C33: 5 | D33: 512100 | F33: ASC Mylene MARTIN | H33: 1500
A34: 2022-08-29 | C34: 4 | D34: 421013 | E34: voyage | F34: ASC Chrsitelle CHOUAN | G34: 1500
A35: 2022-08-29 | C35: 5 | D35: 512100 | F35: ASC Chrsitelle CHOUAN | H35: 1500
A36: 2022-08-29 | C36: 4 | D36: 421014 | E36: Sport et loisirs | F36: ASC Camille GUYOT | G36: 1000
A37: 2022-08-29 | C37: 5 | D37: 512100 | F37: ASC Camille GUYOT | H37: 1000
A38: 2022-08-30 | C38: 4 | D38: 421001 | E38: Remb Avance | F38: Remboursement YL FourniBuro | G38: 103.94
A39: 2022-08-30 | C39: 5 | D39: 512101 | F39: Remboursement YL FourniBuro | H39: 103.94
A40: 2022-09-02 | C40: 4 | D40: 421021 | E40: voyage | F40: ASC Max NOSIBOR | G40: 1500
A41: 2022-09-02 | C41: 5 | D41: 512100 | F41: ASC Max NOSIBOR | H41: 1500
A42: 2022-09-05 | C42: 4 | D42: 421009 | E42: voyage | F42: ASC Eddy LORBEL | G42: 1500
A43: 2022-09-05 | C43: 5 | D43: 512100 | F43: ASC Eddy LORBEL | H43: 1500
A44: 2022-09-06 | C44: 4 | D44: 421012 | E44: voyage | F44: ASC Lydia Thalmsensi | G44: 1126.63
A45: 2022-09-06 | C45: 5 | D45: 512100 | F45: ASC Lydia Thalmsensi | H45: 1126.63
A46: 2022-09-19 | C46: 4 | D46: 421023 | E46: Sport et loisirs | F46: ASC ANAIS LERUS | G46: 174.55
A47: 2022-09-19 | C47: 5 | D47: 512100 | F47: ASC ANAIS LERUS | H47: 174.55
A48: 2022-09-19 | C48: 4 | D48: 421023 | E48: voyage | F48: ASC ANAIS LERUS | G48: 1325.45
A49: 2022-09-19 | C49: 5 | D49: 512100 | F49: ASC ANAIS LERUS | H49: 1325.45
A50: 2022-11-03 | C50: 4 | D50: 421016 | E50: voyage | F50: ASC Guy RAMALINGON | G50: 1500
A51: 2022-11-03 | C51: 5 | D51: 512100 | F51: ASC Guy RAMALINGON | H51: 1500
A52: 2022-11-04 | C52: 4 | D52: 421002 | E52: Sport et loisirs | F52: ASC Eric CHARTON | G52: 400
A53: 2022-11-04 | C53: 5 | D53: 512100 | F53: ASC Eric CHARTON | H53: 400
A54: 2022-11-10 | C54: 4 | D54: 421017 | E54: voyage | F54: ASC Raissa LUSINE | G54: 1000
A55: 2022-11-10 | C55: 5 | D55: 512100 | F55: ASC Raissa LUSINE | H55: 1000
L104: 59800 | M104: 3000 | N104: =L104+M104 -> 62800
G192: =SUM(G2:G191) -> 135067.71 | H192: =SUM(H2:H191) -> 135067.71
A194: Date opérat. | D194: Compte | E194: Rèf | F194: B N P S. C. I. | G194: Débit | H194: Crédit
G209: =SUM(G195:G208) -> 0 | H209: =SUM(H195:H208) -> 0

Sheet OD (hidden)
A1: 2022-07-01 | C1: 4 | D1: 421001 | F1: Achat Dictaphonne DIGITAL | H1: 150
A2: 2022-07-01 | C2: 4 | D2: 401001 | F2: Achat Dictaphonne DIGITAL | G2: 150
A3: 2022-06-13 | C3: 6 | D3: 647000 | F3: ASC Amina ISCAYE | G3: 1500
A4: 2022-06-13 | C4: 4 | D4: 421006 | F4: ASC Amina ISCAYE | H4: 1500
A5: 2022-06-13 | C5: 1 | D5: 155006 | F5: Retour Provision Amina | G5: 1500
A6: 2022-06-13 | C6: 7 | D6: 787500 | F6: Retour Provision Amina | H6: 1500
A7: 2022-05-20 | C7: 6 | D7: 681500 | F7: Provision Budget ASC 2022 | G7: 39000
A8: 2022-05-20 | C8: 1 | D8: 155001 | F8: Provision Budget ASC 2022 | H8: 1500
A9: 2022-05-20 | C9: 1 | D9: 155002 | F9: Provision Budget ASC 2022 | H9: 1500
A10: 2022-05-20 | C10: 1 | D10: 155003 | F10: Provision Budget ASC 2022 | H10: 1500
A11: 2022-05-20 | C11: 1 | D11: 155004 | F11: Provision Budget ASC 2022 | H11: 1500
A12: 2022-05-20 | C12: 1 | D12: 155005 | F12: Provision Budget ASC 2022 | H12: 0
A13: 2022-05-20 | C13: 1 | D13: 155006 | F13: Provision Budget ASC 2022 | H13: 1500
A14: 2022-05-20 | C14: 1 | D14: 155007 | F14: Provision Budget ASC 2022 | H14: 1500
A15: 2022-05-20 | C15: 1 | D15: 155008 | F15: Provision Budget ASC 2022 | H15: 1500
A16: 2022-05-20 | C16: 1 | D16: 155009 | F16: Provision Budget ASC 2022 | H16: 1500
A17: 2022-05-20 | C17: 1 | D17: 155010 | F17: Provision Budget ASC 2022 | H17: 1500
A18: 2022-05-20 | C18: 1 | D18: 155011 | F18: Provision Budget ASC 2022 | H18: 1500
A19: 2022-05-20 | C19: 1 | D19: 155012 | F19: Provision Budget ASC 2022 | H19: 1500
A20: 2022-05-20 | C20: 1 | D20: 155013 | F20: Provision Budget ASC 2022 | H20: 1500
A21: 2022-05-20 | C21: 1 | D21: 155014 | F21: Provision Budget ASC 2022 | H21: 1500
A22: 2022-05-20 | C22: 1 | D22: 155015 | F22: Provision Budget ASC 2022 | H22: 1500
A23: 2022-05-20 | C23: 1 | D23: 155016 | F23: Provision Budget ASC 2022 | H23: 1500
A24: 2022-05-20 | C24: 1 | D24: 155017 | F24: Provision Budget ASC 2022 | H24: 1500
A25: 2022-05-20 | C25: 1 | D25: 155018 | F25: Provision Budget ASC 2022 | H25: 1500
A26: 2022-05-20 | C26: 1 | D26: 155019 | F26: Provision Budget ASC 2022 | H26: 1500
A27: 2022-05-20 | C27: 1 | D27: 155020 | F27: Provision Budget ASC 2022 | H27: 1500
A28: 2022-05-20 | C28: 1 | D28: 155021 | F28: Provision Budget ASC 2022 | H28: 1500
A29: 2022-05-20 | C29: 1 | D29: 155022 | F29: Provision Budget ASC 2022 | H29: 1500
A30: 2022-05-20 | C30: 1 | D30: 155023 | F30: Provision Budget ASC 2022 | H30: 1500
A31: 2022-05-20 | C31: 1 | D31: 155024 | F31: Provision Budget ASC 2022 | H31: 1500
A32: 2022-05-20 | C32: 1 | D32: 155025 | F32: Provision Budget ASC 2022 | H32: 1500
A33: 2022-05-20 | C33: 1 | D33: 155026 | F33: Provision Budget ASC 2022 | H33: 1500
A34: 2022-06-13 | C34: 6 | D34: 647000 | F34: ASC Mireille ROCHE | G34: 1500
A35: 2022-06-13 | C35: 4 | D35: 421015 | F35: ASC Mireille ROCHE | H35: 1500
A36: 2022-06-13 | C36: 1 | D36: 155015 | F36: Retour Provision Mireille ROCHE | G36: 1500
A37: 2022-06-13 | C37: 7 | D37: 787500 | F37: Retour Provision Mireille ROCHE | H37: 1500
A38: 2022-06-13 | C38: 6 | D38: 647000 | F38: ASC Muriel DE GENTIL | G38: 1500
A39: 2022-06-13 | C39: 4 | D39: 421004 | F39: ASC Muriel DE GENTIL | H39: 1500
A40: 2022-06-13 | C40: 1 | D40: 155004 | F40: Retour Provision Muriel DE GENTIL | G40: 1500
A41: 2022-06-13 | C41: 7 | D41: 787500 | F41: Retour Provision Muriel DE GENTIL | H41: 1500
A42: 2022-06-13 | C42: 6 | D42: 647000 | F42: ASC Lydie RESON | G42: 1500
A43: 2022-06-13 | C43: 4 | D43: 421003 | F43: ASC Lydie RESON | H43: 1500
A44: 2022-06-13 | C44: 1 | D44: 155003 | F44: Retour Provision Lydie RESON | G44: 1500
A45: 2022-06-13 | C45: 7 | D45: 787500 | F45: Retour Provision Lydie RESON | H45: 1500
A46: 2022-06-16 | C46: 6 | D46: 647000 | F46: ASC Stéphanie LUBIN | G46: 1500
A47: 2022-06-16 | C47: 4 | D47: 421008 | F47: ASC Stéphanie LUBIN | H47: 1500
A48: 2022-06-16 | C48: 1 | D48: 155008 | F48: Retour Provision Stéphanie LUBIN | G48: 1500
A49: 2022-06-16 | C49: 7 | D49: 787500 | F49: Retour Provision Stéphanie LUBIN | H49: 1500
A50: 2022-06-17 | C50: 6 | D50: 647000 | F50: ASC Yohan LASSALLE | G50: 1500
A51: 2022-06-17 | C51: 4 | D51: 421001 | F51: ASC Yohan LASSALLE | H51: 1500
A52: 2022-06-17 | C52: 1 | D52: 155001 | F52: Retour Provision Yohan LASSALLE | G52: 1500
A53: 2022-06-17 | C53: 7 | D53: 787500 | F53: Retour Provision Yohan LASSALLE | H53: 1500
A54: 2022-08-04 | C54: 6 | D54: 647000 | F54: ASC Adelmas NESLIDE | G54: 661.14
A55: 2022-08-04 | C55: 4 | D55: 421026 | F55: ASC Adelmas NESLIDE | H55: 661.14
A56: 2022-08-04 | C56: 1 | D56: 155026 | F56: Retour Provision Adelmas NESLIDE | G56: 661.14
A57: 2022-08-04 | C57: 7 | D57: 787500 | F57: Retour Provision Adelmas NESLIDE | H57: 661.14
A58: 2022-08-29 | C58: 1 | D58: 155010 | F58: Retour Provision Olivia LAPORAL | G58: 880.24
A59: 2022-08-29 | C59: 7 | D59: 787500 | F59: Retour Provision Olivia LAPORAL | H59: 880.24
A60: 2022-08-31 | C60: 1 | D60: 155010 | E60: voyage | F60: Retour Provision Olivia LAPORAL | G60: 316.05
A61: 2022-08-31 | C61: 7 | D61: 787500 | F61: Retour Provision Olivia LAPORAL | H61: 316.05
A62: 2022-08-31 | C62: 1 | D62: 155010 | E62: Sport et loisirs | F62: Retour Provision Olivia LAPORAL | G62: 159.6
A63: 2022-08-31 | C63: 7 | D63: 787500 | F63: Retour Provision Olivia LAPORAL | H63: 159.6
A64: 2022-08-31 | C64: 1 | D64: 155010 | E64: Noel employé | F64: Retour Provision Olivia LAPORAL | G64: 144.11
A65: 2022-08-31 | C65: 7 | D65: 787500 | F65: Retour Provision Olivia LAPORAL | H65: 144.11
A66: 2022-08-22 | C66: 1 | D66: 155002 | E66: Sport et loisirs | F66: Retour Provision Eric CHARTON | G66: 707
A67: 2022-08-22 | C67: 7 | D67: 787500 | F67: Retour Provision Eric CHARTON | H67: 707
A68: 2022-08-26 | C68: 1 | D68: 155019 | E68: voyage | F68: Retour Provision Mylene MARTIN | G68: 1500
A69: 2022-08-26 | C69: 7 | D69: 787500 | F69: Retour Provision Mylene MARTIN | H69: 1500
A70: 2022-08-29 | C70: 1 | D70: 155013 | E70: voyage | F70: Retour Provision Chrsitelle CHOUAN | G70: 1500
A71: 2022-08-29 | C71: 7 | D71: 787500 | F71: Retour Provision Chrsitelle CHOUAN | H71: 1500
A72: 2022-08-29 | C72: 1 | D72: 155014 | E72: Sport et loisirs | F72: Retour Provision Camille GUYOT | G72: 1000
A73: 2022-08-29 | C73: 7 | D73: 787500 | F73: Retour Provision Camille GUYOT | H73: 1000
A74: 2022-08-30 | C74: 4 | D74: 421001 | F74: Achat FourniBuro | H74: 103.94
A75: 2022-08-30 | C75: 4 | D75: 401001 | F75: Achat FourniBuro | G75: 103.94
A76: 2022-08-29 | C76: 6 | D76: 647000 | F76: ASC Olivia LAPORAL | G76: 880.24
A77: 2022-08-29 | C77: 4 | D77: 421010 | E77: voyage | F77: ASC Olivia LAPORAL | H77: 880.24
A78: 2022-08-31 | C78: 6 | D78: 647000 | F78: ASC Olivia LAPORAL | G78: 316.05
A79: 2022-08-31 | C79: 4 | D79: 421010 | E79: voyage | F79: ASC Olivia LAPORAL | H79: 316.05
A80: 2022-08-31 | C80: 6 | D80: 647000 | F80: ASC Olivia LAPORAL | G80: 159.6
A81: 2022-08-31 | C81: 4 | D81: 421010 | E81: Sport et loisirs | F81: ASC Olivia LAPORAL | H81: 159.6
A82: 2022-08-31 | C82: 6 | D82: 647000 | F82: ASC Olivia LAPORAL | G82: 144.11
A83: 2022-08-31 | C83: 4 | D83: 421010 | E83: Noel employé | F83: ASC Olivia LAPORAL | H83: 144.11
A84: 2022-08-22 | C84: 6 | D84: 647000 | F84: ASC Eric CHARTON | G84: 707
A85: 2022-08-22 | C85: 4 | D85: 421002 | E85: Sport et loisirs | F85: ASC Eric CHARTON | H85: 707
A86: 2022-08-26 | C86: 6 | D86: 647000 | F86: ASC Mylene MARTIN | G86: 1500
A87: 2022-08-26 | C87: 4 | D87: 421019 | E87: voyage | F87: ASC Mylene MARTIN | H87: 1500
A88: 2022-08-29 | C88: 6 | D88: 647000 | F88: ASC Chrsitelle CHOUAN | G88: 1500
A89: 2022-08-29 | C89: 4 | D89: 421013 | E89: voyage | F89: ASC Chrsitelle CHOUAN | H89: 1500
A90: 2022-08-29 | C90: 6 | D90: 647000 | F90: ASC Camille GUYOT | G90: 1000
A91: 2022-08-29 | C91: 4 | D91: 421014 | E91: Sport et loisirs | F91: ASC Camille GUYOT | H91: 1000
A92: 2022-09-02 | C92: 1 | D92: 155021 | E92: voyage | F92: Retour Provision Max NOSIBOR | G92: 1500
A93: 2022-09-02 | C93: 7 | D93: 787500 | F93: Retour Provision Max NOSIBOR | H93: 1500
A94: 2022-09-02 | C94: 6 | D94: 647000 | F94: ASC Max NOSIBOR | G94: 1500
A95: 2022-09-02 | C95: 4 | D95: 421021 | E95: voyage | F95: ASC Max NOSIBOR | H95: 1500
A96: 2022-09-05 | C96: 1 | D96: 155009 | E96: voyage | F96: Retour Provision Eddy LORBEL | G96: 1500
A97: 2022-09-05 | C97: 7 | D97: 787500 | F97: Retour Provision Eddy LORBEL | H97: 1500
A98: 2022-09-05 | C98: 6 | D98: 647000 | F98: ASC Eddy LORBEL | G98: 1500
A99: 2022-09-05 | C99: 4 | D99: 421009 | E99: voyage | F99: ASC Eddy LORBEL | H99: 1500
A100: 2022-09-06 | C100: 1 | D100: 155012 | E100: voyage | F100: Retour Provision Lydia Thalmsensi | G100: 1126.63
A101: 2022-09-06 | C101: 7 | D101: 787500 | F101: Retour Provision Lydia Thalmsensi | H101: 1126.63
A102: 2022-09-06 | C102: 6 | D102: 647000 | F102: ASC Lydia Thalmsensi | G102: 1126.63
A103: 2022-09-06 | C103: 4 | D103: 421012 | E103: voyage | F103: ASC Lydia Thalmsensi | H103: 1126.63
A104: 2022-09-19 | C104: 1 | D104: 155023 | E104: Sport et loisirs | F104: Retour Provision ANAIS LERUS | G104: 174.55
A105: 2022-09-19 | C105: 7 | D105: 787500 | F105: Retour Provision ANAIS LERUS | H105: 174.55
A106: 2022-09-19 | C106: 6 | D106: 647000 | F106: ASC ANAIS LERUS | G106: 174.55
A107: 2022-09-19 | C107: 4 | D107: 421023 | E107: Sport et loisirs | F107: ASC ANAIS LERUS | H107: 174.55
A108: 2022-09-19 | C108: 1 | D108: 155023 | E108: voyage | F108: Retour Provision ANAIS LERUS | G108: 1325.45
A109: 2022-09-19 | C109: 7 | D109: 787500 | F109: Retour Provision ANAIS LERUS | H109: 1325.45
A110: 2022-09-19 | C110: 6 | D110: 647000 | F110: ASC ANAIS LERUS | G110: 1325.45
A111: 2022-09-19 | C111: 4 | D111: 421023 | E111: voyage | F111: ASC ANAIS LERUS | H111: 1325.45
A112: 2022-11-03 | C112: 1 | D112: 155016 | E112: voyage | F112: Retour Provision Guy RAMALINGON | G112: 1500
A113: 2022-11-03 | C113: 7 | D113: 787500 | F113: Retour Provision Guy RAMALINGON | H113: 1500
A114: 2022-11-03 | C114: 6 | D114: 647000 | F114: ASC Guy RAMALINGON | G114: 1500
A115: 2022-11-03 | C115: 4 | D115: 421016 | E115: voyage | F115: ASC Guy RAMALINGON | H115: 1500
A116: 2022-11-04 | C116: 1 | D116: 155002 | E116: Sport et loisirs | F116: Retour Provision Eric CHARTON | G116: 400
A117: 2022-11-04 | C117: 7 | D117: 787500 | F117: Retour Provision Eric CHARTON | H117: 400
A118: 2022-11-04 | C118: 6 | D118: 647000 | F118: ASC Eric CHARTON | G118: 400
A119: 2022-11-04 | C119: 4 | D119: 421002 | E119: Sport et loisirs | F119: ASC Eric CHARTON | H119: 400
A120: 2022-11-10 | C120: 1 | D120: 155017 | E120: voyage | F120: Retour Provision Raissa LUSINE | G120: 1000
A121: 2022-11-10 | C121: 7 | D121: 787500 | F121: Retour Provision Raissa LUSINE | H121: 1000
A122: 2022-11-10 | C122: 6 | D122: 647000 | F122: ASC Raissa LUSINE | G122: 1000
A123: 2022-11-10 | C123: 4 | D123: 421017 | E123: voyage | F123: ASC Raissa LUSINE | H123: 1000
G308: =SUM(G172:G307) -> 0 | H308: =SUM(H172:H307) -> 0

Sheet Ventes (hidden)
L1: =A1 -> 00:00:00 | N1: =C1 -> 0 | O1: =D1 -> 0 | P1: =E1 -> 0 | Q1: =F1 -> 0 | S1: =G1 -> 0
L2: =L1 -> 00:00:00 | N2: 5 | O2: 512100 | P2: =P1 -> 0 | Q2: =Q1 -> 0 | R2: =S1 -> 0 | U2: 150 | W2: =U2 -> 150
V3: =U2-V4 -> 120.6
L4: =A4 -> 00:00:00 | N4: =C4 -> 0 | O4: =D4 -> 0 | P4: =E4 -> 0 | Q4: =F4 -> 0 | S4: =G4 -> 0 | V4: =(U2/100)*19.6 -> 29.4
L5: =L4 -> 00:00:00 | N5: 5 | O5: 512100 | P5: =P4 -> 0 | Q5: =Q4 -> 0 | R5: =S4 -> 0
L7: =A7 -> 00:00:00 | N7: =C7 -> 0 | O7: =D7 -> 0 | P7: =E7 -> 0 | Q7: =F7 -> 0 | S7: =G7 -> 0
L8: =L7 -> 00:00:00 | N8: 5 | O8: 512100 | P8: =P7 -> 0 | Q8: =Q7 -> 0 | R8: =S7 -> 0
L10: =A10 -> 00:00:00 | N10: =C10 -> 0 | O10: =D10 -> 0 | P10: =E10 -> 0 | Q10: =F10 -> 0 | S10: =G10 -> 0
L11: =L10 -> 00:00:00 | N11: 5 | O11: 512100 | P11: =P10 -> 0 | Q11: =Q10 -> 0 | R11: =S10 -> 0
L13: =A13 -> 00:00:00 | N13: =C13 -> 0 | O13: =D13 -> 0 | P13: =E13 -> 0 | Q13: =F13 -> 0 | S13: =G13 -> 0
L14: =L13 -> 00:00:00 | N14: 5 | O14: 512100 | P14: =P13 -> 0 | Q14: =Q13 -> 0 | R14: =S13 -> 0
L16: =A16 -> 00:00:00 | N16: =C16 -> 0 | O16: =D16 -> 0 | P16: =E16 -> 0 | Q16: =F16 -> 0 | S16: =G16 -> 0
L17: =L16 -> 00:00:00 | N17: 5 | O17: 512100 | P17: =P16 -> 0 | Q17: =Q16 -> 0 | R17: =S16 -> 0
L19: =A19 -> 00:00:00 | N19: =C19 -> 0 | O19: =D19 -> 0 | P19: =E19 -> 0 | Q19: =F19 -> 0 | S19: =G19 -> 0
L20: =L19 -> 00:00:00 | N20: 5 | O20: 512100 | P20: =P19 -> 0 | Q20: =Q19 -> 0 | R20: =S19 -> 0
G26: =SUM(G1:G25) -> 0 | H26: =SUM(H1:H25) -> 0 | J26: =SUM(J1:J25) -> 0

Sheet Achats (hidden)
A1: Date opérat. | B1: F | C1: C | D1: Compte | E1: Rèf | F1: Libéllé | G1: Débit | H1: Crédit
A2: 2022-08-30 | C2: 4 | D2: 401001 | F2: Achat FourniBuro | H2: 103.94
A3: 2022-08-30 | C3: 6 | D3: 606400 | F3: Achat FourniBuro | G3: 103.94
G96: =SUM(G2:G95) -> 103.94 | H96: =SUM(H2:H95) -> 103.94

Sheet Caisse (hidden)
I1: =+H1 -> 0
I2: =+I1-G2+H2 -> 0
I3: =+I2-G3+H3 -> 0
I4: 0
I5: 0
I6: 0
I7: 0
I8: 0
I9: 0
I10: 0
I11: 0
I12: 0
I13: 0
I14: 0
I15: 0
I16: 0
I17: 0
I18: 0
I19: 0
I20: 0
I21: 0
I22: 0
I23: 0
I24: 0
I25: 0
I26: 0
I27: 0
I28: 0
G30: =SUM(G1:G29) -> 0 | H30: =SUM(H1:H29) -> 0 | I30: =+H30-G30 -> 0
A38: 2020-03-01 | F38: SOLDE AU 01/03/2020 | H38: 1203.77 | I38: =+H38 -> 1203.77
A39: 2020-03-01 | D39: 615000 | F39: ESSENCE TONDEUSE 10/02 | G39: 5 | I39: =+I38-G39+H39 -> 1198.77
A40: 2020-03-01 | D40: 401DIV | F40: AMAZON 13/02 | G40: 25.08 | I40: =+I39-G40+H40 -> 1173.69
A41: 2020-03-01 | D41: 615000 | F41: CITRONS 26/02 | G41: 1.5 | I41: =+I40-G41+H41 -> 1172.19
G43: =SUM(G38:G42) -> 31.58 | H43: =SUM(H38:H42) -> 1203.77 | I43: =+H43-G43 -> 1172.19

Sheet Plan
A1: PLAN COMPTABLE CSE Antilles Guyane
A3: N° | B3: NOM | C3: N° | D3: NOM | H3: 155 0xx provision ASC | J3: 421 0xx salariés
A4: 101000 | B4: CAPITAL SOCIAL | E4: 00 | F4: DIVERS ACHATS | G4: 01 | H4: Yohan LASSALLE | I4: 01 | J4: Yohan LASSALLE
A5: 106100 | B5: RESERVE LEGALE | C5: 606100 | D5: Achats materiel | E5: 01 | F5: REPARATIONS | G5: 02 | H5: Eric CHARTON | I5: 02 | J5: Eric CHARTON
A6: 106800 | B6: AUTRES RESERVES | C6: 606300 | D6: PETIT OUTILLAGE | E6: 02 | F6: AMENAGEMENTS | G6: 03 | H6: Lydie RESON | I6: 03 | J6: Lydie RESON
A7: 110000 | B7: REPORT A NOUVEAU | C7: 606400 | D7: FOURNITURES DE BUREAU | E7: 03 | F7: PRESSING | G7: 04 | H7: Muriel DE GENTIL | I7: 04 | J7: Muriel DE GENTIL
A8: 120000 | B8: RESULTAT DE L'EXERCICE | C8: 607000 | D8: Achat de Marchandise | E8: 04 | F8: TELEPHONE | G8: 05 | H8: Oriane Mayoute | I8: 05 | J8: Oriane Mayoute
A9: 155000 | B9: Provision pour ASC | C9: 603700 | D9: Variation des stocks de marchandises | E9: 05 | F9: ELECTRICITE | G9: 06 | H9: Amina ISCAYE | I9: 06 | J9: Amina ISCAYE
A10: 168000 | B10: EMPRUNT YL.LASSALLE | C10: 615000 | D10: ENTRETIEN | E10: 06 | F10: EAU | G10: 07 | H10: Geraldine PINOS | I10: 07 | J10: Geraldine
C11: 615500 | D11: CHARGES COLLECTIVES | E11: 07 | F11: IMPOTS | G11: 08 | H11: Stephanie LUBIN | I11: 08 | J11: Stephanie LUBIN
A12: 211000 | B12: TERRAIN | C12: 616000 | D12: ASSURANCES | E12: 08 | F12: PUBLICITE | G12: 09 | H12: Eddy LORBEL | I12: 09 | J12: Eddy LORBEL
A13: 213000 | B13: CONSTRUCTION | C13: 618000 | D13: DOCUMENTATION GENERALE | E13: 09 | F13: ENTRETIEN | G13: 10 | H13: Olivia LAPORAL | I13: 10 | J13: Olivia LAPORAL
A14: 215000 | B14: MATERIEL ET OUTILLAGE | C14: 622600 | D14: HONORAIRES DIVERS | E14: 10 | F14: ASSURANCES | G14: 11 | H14: Ma-Ivah BENOIT | I14: 11 | J14: Ma-Ivah BENOIT
A15: 218100 | B15: AGENCEMENTS INSTALLATION | C15: 622700 | D15: FRAIS ACTES ET CONTENTIEUX | E15: 11 | F15: JARDINAGE | G15: 12 | H15: Lydia THALMENSI | I15: 12 | J15: Lydia THALMENSI
A16: 218200 | B16: MATERIEL DE TRANSPORT | C16: 622800 | D16: HONORAIRES DE GESTION | E16: 12 | F16: FRAIS BANCAIRE | G16: 13 | H16: Christelle CHOUAN | I16: 13 | J16: Christelle CHOUAN
A17: 218300 | B17: MATERIEL DE BUREAU | C17: 623000 | D17: PUBLICITE | E17: 13 | F17: RAYM/DEDE | G17: 14 | H17: Camille GUYOT | I17: 14 | J17: Camille GUYOT
A18: 275000 | B18: DEPOT DE GARANTIE PAYE | C18: 624000 | D18: FRAIS DE VOITURE | E18: 20 | F18: INVESTISSEMENT | G18: 15 | H18: Mireille ROCHE | I18: 15 | J18: Mireille ROCHE
A19: 281300 | B19: AMORT. CONSTRUCTION | C19: 625000 | D19: VOYAGE ET DEPLACEMENT | G19: 16 | H19: Guy RAMALINGON | I19: 16 | J19: Guy RAMALINGON
A20: 281810 | B20: AMORT. AGENCEMENTS INSTALLAT. | C20: 625700 | D20: MISSIONS RECEPTIONS | G20: 17 | H20: RAISSA LUSINE | I20: 17 | J20: RAISSA LUSINE
A21: 281820 | B21: AMORT. MATERIEL DE TRANSPORT | C21: 626000 | D21: P.T.T. ET TIMBRES | G21: 18 | H21: Xavier CORBIN | I21: 18 | J21: Xavier CORBIN
A22: 281830 | B22: AMORT. MATERIEL DE BUREAU | C22: 627000 | D22: SERVICES BANCAIRES | G22: 19 | H22: Mylene MARTIN | I22: 19 | J22: Mylene MARTIN
C23: 633800 | D23: AUTRES IMPOTS ET TAXES | G23: 20 | H23: Johanne LONGRAIS | I23: 20 | J23: Johanne LONGRAIS
C24: 635000 | D24: IMPOT FORFAITAIRE SOCIETE | G24: 21 | H24: Max NOSIBOR | I24: 21 | J24: Max NOSIBOR
C25: 635100 | D25: TAXE FONCIERE | G25: 22 | H25: Maxime ANNEQUIN | I25: 22 | J25: Maxime ANNEQUIN
C26: 635400 | D26: DROITS ENREG. ET TIMBRES | G26: 23 | H26: ANAIS LERUS | I26: 23 | J26: ANAIS LERUS
A27: 401xxx | B27: Fournisseurs | C27: 635800 | D27: TAXE SUR BUREAUX | G27: 24 | H27: Carla MARMOLEJO | I27: 24 | J27: Carla MARMOLEJO
A28: 401001 | B28: Fourniburo | C28: 637800 | D28: TAXES DIVERSES | G28: 25 | H28: EDWIN SANDOT | I28: 25 | J28: EDWIN SANDOT
A29: 401002 | B29: Marie Kate Kreation | C29: 647000 | D29: ASC | G29: 26 | H29: Adelmas NESLIDE | I29: 26 | J29: Adelmas NESLIDE
A30: 401003 | B30: Carrefour Destrland | C30: 654000 | D30: PERTES S/CREANCES IRRECOU. | G30: 27 | H30: Guillaume SOULAS | I30: 27 | J30: Guillaume SOULAS
A31: 401004 | B31: Air Caraibes | C31: 658000 | D31: CHARGES DIVERSES | G31: 28 | H31: Julien LALAIT | I31: 28 | J31: Julien LALAIT
A32: 401005 | B32: Assurance Avion | C32: 661100 | D32: INTERETS D'EMPRUNTS | G32: 29 | H32: Grenelle Triveillot | I32: 29 | J32: Grenelle Triveillot
A33: 401006 | B33: Location vehicule AutoJumboCAR | C33: 661500 | D33: INTERETS CPTES COURANTS | G33: 30 | H33: MAILINE FIDOL | I33: 30 | J33: MAILINE FIDOL
A34: 401007 | B34: Chronopost | C34: 661600 | D34: INTERETS BANCAIRES | G34: 31 | H34: Emilie GUILLAUME | I34: 31 | J34: Emilie GUILLAUME
C35: 661800 | D35: INTERETS DES AUTRES DETTES | G35: 32 | H35: Remplaçante Amina | I35: 32 | J35: Remplaçante Amina
C36: 668800 | D36: ECART DE CONVERSION
C37: 672000 | D37: CHARGES S/EXERCICE ANTERIEUR
C38: 681000 | D38: DOTATIONS AMORTISSEMENTS
C39: 681700 | D39: DOT.PROV.P/DEP.ACTIFS CIRCUL.
A40: 403000 | B40: FOURNISSEURS EFFET A PAYER | C40: 681500 | D40: Provisions des Charges ASC
A41: 408000 | B41: FOURNISSEURS CHARGES A PAYER | C41: 695000 | D41: IMPOT SOCIETE
A42: 409000 | B42: FOURNISSEURS DEBITEURS
A43: 411000 | B43: CLIENTS DIVERS
A44: 414000 | B44: AVANCES S/CHARGES RECUES | C44: 706000 | D44: LOYERS
A45: 415000 | B45: CHARGES LOCATIVES | C45: 706100 | D45: LOYERS S/REGUL DEPOT
A46: 416000 | B46: CLIENTS DOUTEUX | C46: 706500 | D46: Vente Réparation Divers
A47: 419000 | B47: CLIENTS CREDITEURS | C47: 706600 | D47: PRESTATIONS DIVERSES
A48: 444000 | B48: IMPOTS SUR BENEFICES | C48: 707000 | D48: Vente de Marchandise
A49: 444100 | B49: IMPOTS S/BENEF. 10%
A50: 445500 | B50: TVA A DECAISSER | C50: 708050 | D50: AVANCES S/CHARGES COLLECTIVES
A51: 445600 | B51: TVA DEDUCTIBLE | C51: 708051 | D51: REGUL S/CHARGES COLLECTIVES
A52: 445660 | B52: TVA DEDUC. NON REGLEE | C52: 758000 | D52: PRODUITS DIVERS
A53: 445700 | B53: TVA COLLECTEE 19.60% | C53: 764000 | D53: REVENUS TITRES PLACEMENT
A54: 445710 | B54: T.V.A. COLLECTEE 20.60% | C54: 768000 | D54: AUTRE PRODUITS FINANCIERS
A55: 445720 | B55: T.V.A. COLLECTEE REGUL. | C55: 771800 | D55: AUTRES PRDTS EXCEP.S/OP.GEST.
A56: 445900 | B56: TVA DEBIT. S/FIN EXERCICE | C56: 772000 | D56: PRDTS EXCEPT.S/EXERC.ANTERIEUR
A57: 448000 | B57: ETAT CHARGES A PAYER | C57: 781700 | D57: REP/PROV.DEPR.ACTIFS CIRCUL.
A58: 448700 | B58: ETAT, PRODUITS A RECEVOIR | C58: 756010 | D58: Subvention de fonctionnement reçue l’employeur
A59: 455400 | B59: CPTE COURANT LASSALLE YOHAN | C59: 756020 | D59: Contribution reçue de l’employeur
A60: 467000 | B60: DEBIT. ET CREDIT. DIVERS | C60: 787500 | D60: Reprises sur provisions exceptionnelles
A61: 468600 | B61: DEB. CRED. CHARGES A PAYER
A62: 470000 | B62: COMPTE D'ATTENTE
A63: 486000 | B63: CHARGES PAYEES D'AVANCE | C63: 840000 | D63: SOLDE D'EXPLOITATION
A64: 487000 | B64: PRDTS CONSTATES D'AVANCE | C64: 880000 | D64: RESULTAT ATTENTE AFFECT.
A65: 491000 | B65: PROV.P/DEP.CPTES CLIENTS
A67: 508000 | B67: AUTRES VALEURS DE PLACEMENT
A68: 512000 | B68: CREDIT AGRICOLE ASC
A69: 512001 | B69: CREDIT AGRICOLE FONCTIONNEMENT
A70: 518600 | B70: INTERETS COURUS
A71: 530000 | B71: CAISSE
A72: 580000 | B72: VIREMENTS INTERNES

Sheet Echéancier (hidden)

Sheet NOMS
A1: 155001 | B1: Yohan LASSALLE | F1: 155001
A2: 155002 | B2: Eric CHARTON | F2: 155002
A3: 155003 | B3: Lydie RESON | F3: 155003
A4: 155004 | B4: Muriel DE GENTIL | F4: 155004
A5: 155005 | B5: Oriane Mayoute | F5: 155005
A6: 155006 | B6: Amina ISCAYE | F6: 155007
A7: 155007 | B7: Geraldine PINOS | F7: 155008
A8: 155008 | B8: Stephanie LUBIN | F8: 155009
A9: 155009 | B9: Eddy LORBEL | F9: 155010
A10: 155010 | B10: Olivia LAPORAL | F10: 155011
A11: 155011 | B11: Ma-Ivah BENOIT | F11: 155012
A12: 155012 | B12: Lydia THALMENSI | F12: 155013
A13: 155013 | B13: Christelle CHOUAN | F13: 155015
A14: 155014 | B14: Camille GUYOT | F14: 155017
A15: 155015 | B15: Mireille ROCHE | F15: 155018
A16: 155016 | B16: Guy RAMALINGON | F16: 155019
A17: 155017 | B17: RAISSA LUSINE | F17: 155020
A18: 155018 | B18: Xavier CORBIN | F18: 155021
A19: 155019 | B19: Mylene MARTIN | F19: 155022
A20: 155020 | B20: Johanne LONGRAIS | F20: 155023
A21: 155021 | B21: Max NOSIBOR | F21: 155025
A22: 155022 | B22: Maxime ANNEQUIN | F22: 155027
A23: 155023 | B23: ANAIS LERUS | F23: 155028
A24: 155024 | B24: Carla MARMOLEJO | F24: 155029
A25: 155025 | B25: EDWIN SANDOT | F25: 155030
A26: 155026 | B26: Adelmas NESLIDE | F26: 155031
A27: 155027 | B27: Guillaume SOULAS | F27: 155032
A28: 155028 | B28: Julien LALAIT
A29: 155029 | B29: Grenelle Triveillot
A30: 155030 | B30: MAILINE FIDOL
A31: 155031 | B31: Emilie GUILLAUME
A32: 155032 | B32: Remplaçante Amina | C32: Arrivée dans l'entreprise le | E32: 2024-02-01
I36: 421001 | J36: Yohan LASSALLE
I37: 421002 | J37: Eric CHARTON
I38: 421003 | J38: Lydie RESON
I39: 421004 | J39: Muriel DE GENTIL
I40: 421005 | J40: Oriane Mayoute
I41: 421006 | J41: Amina ISCAYE
I42: 421007 | J42: Geraldine PINOS
I43: 421008 | J43: Stephanie LUBIN
I44: 421009 | J44: Eddy LORBEL
I45: 421010 | J45: Olivia LAPORAL
I46: 421011 | J46: Ma-Ivah BENOIT
I47: 421012 | J47: Lydia THALMENSI
I48: 421013 | J48: Christelle CHOUAN
I49: 421014 | J49: Camille GUYOT
I50: 421015 | J50: Mireille ROCHE
I51: 421016 | J51: Guy RAMALINGON
I52: 421017 | J52: RAISSA LUSINE
I53: 421018 | J53: Xavier CORBIN
I54: 421019 | J54: Mylene MARTIN
I55: 421020 | J55: Johanne LONGRAIS
C56: Arrivée dans l'entreprise le | I56: 421021 | J56: Max NOSIBOR
C57: Arrivée dans l'entreprise le | I57: 421022 | J57: Maxime ANNEQUIN
C58: Arrivée dans l'entreprise le | I58: 421023 | J58: ANAIS LERUS
C59: Arrivée dans l'entreprise le | E59: 2022-10-01 | I59: 421024 | J59: Carla MARMOLEJO
C60: Arrivée dans l'entreprise le | I60: 421025 | J60: EDWIN SANDOT
I61: 421026 | J61: Adelmas NESLIDE
I62: 421027 | J62: Guillaume SOULAS
I63: 421028 | J63: Julien LALAIT
I64: 421029 | J64: Grenelle Triveillot
I65: 421030 | J65: MAILINE FIDOL
I66: 421031 | J66: Emilie GUILLAUME
I67: 421032 | J67: Remplaçante Amina

Sheet CALCUL divers
C10: Voiture de location | D10: 191 | I10: 43.99
C11: Billet d'avion | D11: 362.83 | I11: 43.99
C12: Hôtel Beach view | D12: 400.53 | I12: 43.99
C13: Hôtel South Gap | D13: 208.57 | I13: =SUM(I10:I12) -> 131.97
C14: Hôtel Sweetfield Manor | D14: 245.62
C15: Hôtel La Pagerie | D15: 202.4
C16: Facture Airbnb | D16: 216.67
C17: Facture la Ferme Attitude | D17: 150
D18: =SUM(D10:D17) -> 1977.62
C22: Spectable GSL humoriste | D22: 70 | F22: =2000-D18 -> 22.38
C23: Spectacle FARY humoriste | D23: 92.26
D24: =SUM(D22:D23) -> 162.26
C31: Visite Harrisson Cave | D31: 156.64
G35: 259.17
F39: 31.05 | G39: 757.44
F40: 31.05 | G40: 164.16
F41: 25 | G41: 25.2
F42: =SUM(F39:F41) -> 87.1 | G42: =SUM(G39:G41) -> 946.8
E44: 42 | G44: =G42+F42 -> 1033.9
E45: 42
E46: 32
E47: 32
E48: =SUM(E44:E47) -> 148

Sheet Programme
A1: 2023-12-29 | B1: VIREMENT EMIS MIREILLE ROCHE ASC 2023 Voyage | C1: 776 | D1: Mireille ROCHE | E1: =VLOOKUP(D1,Plan!H4:I43,2,FALSE) -> 15 | F1: Voyage | G1: *
D6: Retour Provision Eric CHARTON
D7: Retour Provision Eric CHARTON
D8: ASC Eric CHARTON
D9: ASC Eric CHARTON
D10: ASC Eric CHARTON
D11: ASC Eric CHARTON
D15: Retour Provision Eric CHARTON
D16: Retour Provision Eric CHARTON
D17: ASC Eric CHARTON
D18: ASC Eric CHARTON
D19: ASC Eric CHARTON
D20: ASC Eric CHARTON
D25: Voyage
D26: Culture
D27: Garde enfants
D28: Sport et loisirs
D29: NOEL SALARIE
D30: NOEL enfant1
D31: NOEL enfant2
D32: NOEL enfant 3
